[Event "Early-Titled-Tuesday-Blitz-February-20-2024"]
[Site "Chess.com"]
[Date "2024.02.20"]
[Round "7"]
[White "klimkoj"]
[Black "PavelShkapenko"]
[Result "1-0"]
[WhiteElo "2873"]
[BlackElo "2720"]
[TimeControl "180+1"]
[EndTime "9:22:36 PST"]
[Termination "klimkoj won by resignation"]

1. d4 {[%clk 0:03:00.9]} 1... d5 {[%clk 0:02:59.3]} 2. Nf3 {[%clk 0:03:01.1]}
2... Nf6 {[%clk 0:02:58.4]} 3. Bf4 {[%clk 0:03:01.7]} 3... e6 {[%clk 0:02:57.6]}
4. e3 {[%clk 0:03:02]} 4... Bd6 {[%clk 0:02:57.9]} 5. Bxd6 {[%clk 0:02:59.8]}
5... Qxd6 {[%clk 0:02:55]} 6. c4 {[%clk 0:03:00.2]} 6... O-O {[%clk 0:02:32.5]}
7. Nc3 {[%clk 0:02:59.2]} 7... dxc4 {[%clk 0:02:28.1]} 8. Bxc4 {[%clk
0:02:58.6]} 8... c5 {[%clk 0:02:24.9]} 9. Nb5 {[%clk 0:02:51.8]} 9... Qe7 {[%clk
0:02:20.2]} 10. dxc5 {[%clk 0:02:51.2]} 10... Qxc5 {[%clk 0:02:16.3]} 11. Rc1
{[%clk 0:02:49.4]} 11... Nc6 {[%clk 0:02:16.9]} 12. O-O {[%clk 0:02:47.4]} 12...
Rd8 {[%clk 0:02:06.3]} 13. Qa4 {[%clk 0:02:23]} 13... Qe7 {[%clk 0:02:03.4]} 14.
Be2 {[%clk 0:01:47.2]} 14... Bd7 {[%clk 0:02:02.9]} 15. Qa3 {[%clk 0:01:44]}
15... Qxa3 {[%clk 0:01:53.1]} 16. bxa3 {[%clk 0:01:39.9]} 16... Kf8 {[%clk
0:01:43]} 17. Nd6 {[%clk 0:01:37.4]} 17... Rab8 {[%clk 0:01:33.1]} 18. e4 {[%clk
0:01:35.1]} 18... Ne8 {[%clk 0:01:24.6]} 19. Nc4 {[%clk 0:01:25.5]} 19... Ke7
{[%clk 0:01:23.9]} 20. e5 {[%clk 0:01:18]} 20... Nc7 {[%clk 0:01:19]} 21. Bd3
{[%clk 0:01:05.1]} 21... h6 {[%clk 0:01:15.7]} 22. Be4 {[%clk 0:01:04.1]} 22...
Be8 {[%clk 0:01:15.9]} 23. Nd6 {[%clk 0:01:00]} 23... Nxe5 {[%clk 0:01:03.3]}
24. Nxb7 {[%clk 0:00:47.3]} 24... Nxf3+ {[%clk 0:01:00.5]} 25. Bxf3 {[%clk
0:00:47.8]} 25... Rd7 {[%clk 0:00:59.7]} 26. Na5 {[%clk 0:00:38.5]} 26... Kf6
{[%clk 0:00:50.6]} 27. Nc6 {[%clk 0:00:38]} 27... Rb2 {[%clk 0:00:47.3]} 28.
Nxa7 {[%clk 0:00:32.7]} 28... Nd5 {[%clk 0:00:44.2]} 29. Nc6 {[%clk 0:00:31.2]}
29... Rxa2 {[%clk 0:00:43.6]} 30. Bxd5 {[%clk 0:00:23.3]} 30... Rxd5 {[%clk
0:00:36.6]} 31. Nb4 {[%clk 0:00:22.6]} 31... Rxa3 {[%clk 0:00:37.1]} 32. Nxd5+
{[%clk 0:00:22.9]} 32... exd5 {[%clk 0:00:37.7]} 33. Rfd1 {[%clk 0:00:20.7]}
33... Ra5 {[%clk 0:00:33]} 34. f3 {[%clk 0:00:21]} 34... Bd7 {[%clk 0:00:32.9]}
35. Rc7 {[%clk 0:00:19.3]} 35... Be6 {[%clk 0:00:33]} 36. Rd2 {[%clk 0:00:20]}
36... g5 {[%clk 0:00:31.8]} 37. Kf2 {[%clk 0:00:20]} 37... h5 {[%clk 0:00:32]}
38. Rb2 {[%clk 0:00:18.1]} 38... h4 {[%clk 0:00:31.1]} 39. Rcb7 {[%clk
0:00:17.3]} 39... Ra1 {[%clk 0:00:29.4]} 40. g3 {[%clk 0:00:16]} 40... hxg3+
{[%clk 0:00:26.7]} 41. hxg3 {[%clk 0:00:16.9]} 41... Rh1 {[%clk 0:00:25.5]} 42.
Rb8 {[%clk 0:00:16.2]} 42... Rc1 {[%clk 0:00:21.7]} 43. Rh8 {[%clk 0:00:15.1]}
43... Kg7 {[%clk 0:00:21.2]} 44. Rh5 {[%clk 0:00:14.8]} 44... Kg6 {[%clk
0:00:21.1]} 45. Rh8 {[%clk 0:00:15.2]} 45... Kg7 {[%clk 0:00:21.3]} 46. Rd8
{[%clk 0:00:15.8]} 46... Kf6 {[%clk 0:00:21]} 47. Re2 {[%clk 0:00:15.8]} 47...
Rh1 {[%clk 0:00:18]} 48. Rb8 {[%clk 0:00:13]} 48... Rd1 {[%clk 0:00:17.3]} 49.
Rbb2 {[%clk 0:00:12.3]} 49... Rh1 {[%clk 0:00:16.4]} 50. Ke3 {[%clk 0:00:11.7]}
50... Rg1 {[%clk 0:00:16.2]} 51. Rg2 {[%clk 0:00:11.8]} 51... Re1+ {[%clk
0:00:15.9]} 52. Rbe2 {[%clk 0:00:11.6]} 52... Rd1 {[%clk 0:00:15.9]} 53. Rd2
{[%clk 0:00:11]} 53... Re1+ {[%clk 0:00:15.9]} 54. Kd4 {[%clk 0:00:11.2]} 54...
Rf1 {[%clk 0:00:16.1]} 55. Rgf2 {[%clk 0:00:11.1]} 55... Rg1 {[%clk 0:00:16]}
56. Rg2 {[%clk 0:00:11.7]} 56... Rf1 {[%clk 0:00:16.2]} 57. Rdf2 {[%clk
0:00:12]} 57... Rd1+ {[%clk 0:00:15.6]} 58. Kc3 {[%clk 0:00:11.8]} 58... Ra1
{[%clk 0:00:14.9]} 59. Rd2 {[%clk 0:00:09.8]} 59... Ra3+ {[%clk 0:00:14.4]} 60.
Kd4 {[%clk 0:00:10.2]} 60... Rxf3 {[%clk 0:00:14.6]} 61. Rdf2 {[%clk 0:00:10.1]}
61... Rxf2 {[%clk 0:00:14.9]} 62. Rxf2+ {[%clk 0:00:11]} 62... Ke7 {[%clk
0:00:13.5]} 63. Ke5 {[%clk 0:00:11.9]} 63... Kd7 {[%clk 0:00:10.9]} 64. Rc2
{[%clk 0:00:11.4]} 64... g4 {[%clk 0:00:10]} 65. Rc1 {[%clk 0:00:11.3]} 65...
Kd8 {[%clk 0:00:10.1]} 66. Kd6 {[%clk 0:00:11.4]} 66... d4 {[%clk 0:00:10.1]}
67. Rh1 {[%clk 0:00:11.2]} 67... Kc8 {[%clk 0:00:09.9]} 68. Rd1 {[%clk
0:00:11.4]} 68... Kb7 {[%clk 0:00:09.5]} 69. Rxd4 {[%clk 0:00:11.8]} 69... Kb6
{[%clk 0:00:09.6]} 70. Rb4+ {[%clk 0:00:11.4]} 70... Ka5 {[%clk 0:00:09.1]} 71.
Kc5 {[%clk 0:00:12]} 71... Ka6 {[%clk 0:00:09.4]} 72. Rb5 {[%clk 0:00:11.4]}
72... Bd7 {[%clk 0:00:08.7]} 73. Rb6+ {[%clk 0:00:11.3]} 73... Ka7 {[%clk
0:00:09.2]} 74. Rb2 {[%clk 0:00:11.2]} 74... Be6 {[%clk 0:00:09.3]} 75. Kd6
{[%clk 0:00:11.3]} 75... Ka6 {[%clk 0:00:09.5]} 76. Kc6 {[%clk 0:00:10.3]} 76...
Ka5 {[%clk 0:00:09.3]} 77. Rb5+ {[%clk 0:00:09.9]} 77... Ka4 {[%clk 0:00:09.5]}
78. Kc5 {[%clk 0:00:10.6]} 78... Ka3 {[%clk 0:00:09.4]} 79. Rb6 {[%clk 0:00:10]}
79... Bb3 {[%clk 0:00:04.8]} 80. Kd4 {[%clk 0:00:10.3]} 80... Kb2 {[%clk
0:00:04.2]} 81. Kd3 {[%clk 0:00:08.9]} 81... Ka2 {[%clk 0:00:03.4]} 82. Kc3
{[%clk 0:00:08.7]} 82... Be6 {[%clk 0:00:03.6]} 83. Rb4 {[%clk 0:00:09.2]} 83...
Ka3 {[%clk 0:00:03.4]} 84. Re4 {[%clk 0:00:08.7]} 84... Ka2 {[%clk 0:00:03.5]}
85. Rd4 {[%clk 0:00:08.3]} 85... Kb1 {[%clk 0:00:03.2]} 86. Rd1+ {[%clk
0:00:08.1]} 86... Ka2 {[%clk 0:00:03.3]} 87. Rf1 {[%clk 0:00:08.7]} 87... Bb3
{[%clk 0:00:02.5]} 88. Rf4 {[%clk 0:00:07.9]} 88... Be6 {[%clk 0:00:01.8]} 89.
Ra4+ {[%clk 0:00:08.2]} 89... Kb1 {[%clk 0:00:02.3]} 90. Kd2 {[%clk 0:00:07.8]}
90... Kb2 {[%clk 0:00:02.3]} 91. Rb4+ {[%clk 0:00:08.3]} 91... Ka3 {[%clk
0:00:02.1]} 92. Rb8 {[%clk 0:00:08.2]} 92... Ka2 {[%clk 0:00:03]} 93. Ke3 {[%clk
0:00:09]} 93... Ka3 {[%clk 0:00:03.2]} 94. Kf4 {[%clk 0:00:09.1]} 94... Ka4
{[%clk 0:00:03.7]} 95. Rb6 {[%clk 0:00:09.2]} 95... Ka5 {[%clk 0:00:04.1]} 96.
Rxe6 {[%clk 0:00:09.6]} 96... fxe6 {[%clk 0:00:04.6]} 97. Kxg4 {[%clk
0:00:10.5]} 97... Kb5 {[%clk 0:00:04.5]} 98. Kh5 {[%clk 0:00:07.1]} 98... Kc4
{[%clk 0:00:04]} 99. g4 {[%clk 0:00:07.6]} 99... e5 {[%clk 0:00:04.9]} 100. g5
{[%clk 0:00:07.6]} 100... e4 {[%clk 0:00:05.5]} 101. g6 {[%clk 0:00:08.3]}
101... e3 {[%clk 0:00:06.1]} 102. g7 {[%clk 0:00:09.2]} 102... e2 {[%clk
0:00:06.6]} 103. g8=Q+ {[%clk 0:00:09.8]} 103... Kd3 {[%clk 0:00:07.5]} 104.
Qd5+ {[%clk 0:00:09.7]} 104... Ke3 {[%clk 0:00:07.6]} 105. Qe5+ {[%clk
0:00:10.1]} 105... Kf2 {[%clk 0:00:07.9]} 106. Qf4+ {[%clk 0:00:09.9]} 106...
Kg1 {[%clk 0:00:08]} 107. Qg3+ {[%clk 0:00:10.2]} 107... Kf1 {[%clk 0:00:08.4]}
108. Qf3+ {[%clk 0:00:10.6]} 108... Ke1 {[%clk 0:00:09.1]} 109. Kg4 {[%clk
0:00:11]} 109... Kd2 {[%clk 0:00:09.8]} 110. Qd5+ {[%clk 0:00:11.3]} 110... Ke3
{[%clk 0:00:10.2]} 111. Qe5+ {[%clk 0:00:11.7]} 111... Kd3 {[%clk 0:00:10.5]}
112. Kf3 {[%clk 0:00:11.7]} 1-0

[Event "Early-Titled-Tuesday-Blitz-February-20-2024"]
[Site "Chess.com"]
[Date "2024.02.20"]
[Round "7"]
[White "rquery98"]
[Black "Genghis_K"]
[Result "1/2-1/2"]
[WhiteElo "2780"]
[BlackElo "2933"]
[TimeControl "180+1"]
[EndTime "9:22:58 PST"]
[Termination "Game drawn - insufficient material"]

1. c4 {[%clk 0:03:00.9]} 1... e5 {[%clk 0:02:59.5]} 2. g3 {[%clk 0:03:01.2]}
2... c6 {[%clk 0:02:59.6]} 3. Nf3 {[%clk 0:03:00.2]} 3... e4 {[%clk 0:03:00.1]}
4. Nd4 {[%clk 0:03:00.4]} 4... d5 {[%clk 0:03:00.9]} 5. cxd5 {[%clk 0:03:00.4]}
5... Qxd5 {[%clk 0:03:01.8]} 6. Nc2 {[%clk 0:03:00.9]} 6... Nf6 {[%clk
0:02:55.8]} 7. Nc3 {[%clk 0:03:00.2]} 7... Qe5 {[%clk 0:02:54.4]} 8. Bg2 {[%clk
0:03:00.5]} 8... Na6 {[%clk 0:02:53.4]} 9. Rb1 {[%clk 0:02:56.4]} 9... Be7
{[%clk 0:02:50.1]} 10. b4 {[%clk 0:02:49.1]} 10... O-O {[%clk 0:02:39.1]} 11.
Bb2 {[%clk 0:02:42.5]} 11... Qf5 {[%clk 0:02:38.7]} 12. Ne3 {[%clk 0:02:40.8]}
12... Qg6 {[%clk 0:02:38.4]} 13. a3 {[%clk 0:02:38.7]} 13... Nc7 {[%clk
0:02:31.8]} 14. Qc2 {[%clk 0:02:38.4]} 14... Ncd5 {[%clk 0:02:14.5]} 15. Ncxd5
{[%clk 0:02:15.5]} 15... cxd5 {[%clk 0:02:08.2]} 16. Bxf6 {[%clk 0:02:13.5]}
16... Bxf6 {[%clk 0:02:06.8]} 17. Nxd5 {[%clk 0:02:13.5]} 17... Bf5 {[%clk
0:02:00.7]} 18. Nxf6+ {[%clk 0:01:57.6]} 18... gxf6 {[%clk 0:01:42.5]} 19. O-O
{[%clk 0:01:54.4]} 19... Rac8 {[%clk 0:01:39.3]} 20. Qb2 {[%clk 0:01:50.9]}
20... Rfd8 {[%clk 0:01:36]} 21. Rbc1 {[%clk 0:01:49.1]} 21... Be6 {[%clk
0:01:17.5]} 22. Rxc8 {[%clk 0:01:38.4]} 22... Rxc8 {[%clk 0:01:17.4]} 23. Qd4
{[%clk 0:01:15.6]} 23... Rc4 {[%clk 0:01:16.3]} 24. Qxa7 {[%clk 0:01:14.7]}
24... Bd5 {[%clk 0:01:07.9]} 25. d3 {[%clk 0:01:03.6]} 25... Rc2 {[%clk
0:01:08.2]} 26. Qd4 {[%clk 0:00:50.4]} 26... Bc6 {[%clk 0:00:55.2]} 27. Bxe4
{[%clk 0:00:46.3]} 27... Bxe4 {[%clk 0:00:55.3]} 28. Qxe4 {[%clk 0:00:47]} 28...
Qxe4 {[%clk 0:00:55.5]} 29. dxe4 {[%clk 0:00:47.9]} 29... Rxe2 {[%clk
0:00:56.2]} 30. Rc1 {[%clk 0:00:22.3]} 30... Rxe4 {[%clk 0:00:54.1]} 31. Rc7
{[%clk 0:00:22.8]} 31... Re1+ {[%clk 0:00:54.3]} 32. Kg2 {[%clk 0:00:22.7]}
32... Ra1 {[%clk 0:00:55.2]} 33. Rxb7 {[%clk 0:00:20.9]} 33... Rxa3 {[%clk
0:00:55.9]} 34. Rc7 {[%clk 0:00:21.6]} 34... Rb3 {[%clk 0:00:55.5]} 35. Rc4
{[%clk 0:00:22.1]} 35... Kg7 {[%clk 0:00:55.5]} 36. Rf4 {[%clk 0:00:20.1]} 36...
Kg6 {[%clk 0:00:53.8]} 37. h4 {[%clk 0:00:20.5]} 37... f5 {[%clk 0:00:53.7]} 38.
Kf1 {[%clk 0:00:20.8]} 38... Kf6 {[%clk 0:00:52.3]} 39. Ke2 {[%clk 0:00:21.3]}
39... Ke5 {[%clk 0:00:53]} 40. Rc4 {[%clk 0:00:21.8]} 40... Rb2+ {[%clk
0:00:51.8]} 41. Kf3 {[%clk 0:00:21.4]} 41... Rb3+ {[%clk 0:00:52.3]} 42. Kg2
{[%clk 0:00:21.4]} 42... h5 {[%clk 0:00:49.1]} 43. Rc5+ {[%clk 0:00:19.2]} 43...
Ke6 {[%clk 0:00:46.4]} 44. Rc6+ {[%clk 0:00:19.3]} 44... Ke5 {[%clk 0:00:47.1]}
45. Rc5+ {[%clk 0:00:18.4]} 45... Ke6 {[%clk 0:00:47.3]} 46. b5 {[%clk
0:00:17.8]} 46... Kf6 {[%clk 0:00:41.4]} 47. Kf1 {[%clk 0:00:14.8]} 47... Kg6
{[%clk 0:00:39.2]} 48. Rc6+ {[%clk 0:00:15]} 48... Kg7 {[%clk 0:00:39]} 49. b6
{[%clk 0:00:15.9]} 49... f4 {[%clk 0:00:37.8]} 50. gxf4 {[%clk 0:00:15.5]} 50...
Rb4 {[%clk 0:00:38.6]} 51. Kg2 {[%clk 0:00:13.2]} 51... Rxf4 {[%clk 0:00:38.7]}
52. b7 {[%clk 0:00:12.9]} 52... Rb4 {[%clk 0:00:36.9]} 53. Rc7 {[%clk
0:00:13.5]} 53... Kg6 {[%clk 0:00:35.5]} 54. Kf3 {[%clk 0:00:13.9]} 54... f6
{[%clk 0:00:34.9]} 55. Ke3 {[%clk 0:00:13.1]} 55... Kf5 {[%clk 0:00:34.6]} 56.
Rg7 {[%clk 0:00:13.4]} 56... Ke5 {[%clk 0:00:31.3]} 57. Kd3 {[%clk 0:00:11.6]}
57... Kd5 {[%clk 0:00:30.3]} 58. Kc3 {[%clk 0:00:11.9]} 58... Rb1 {[%clk
0:00:30.5]} 59. Rh7 {[%clk 0:00:10.6]} 59... Kc6 {[%clk 0:00:27.2]} 60. Kd4
{[%clk 0:00:10.6]} 60... Rb4+ {[%clk 0:00:24.8]} 61. Ke3 {[%clk 0:00:10.6]}
61... Kd6 {[%clk 0:00:20]} 62. Kd3 {[%clk 0:00:06.5]} 62... Rb1 {[%clk
0:00:17.3]} 63. Ke4 {[%clk 0:00:06.3]} 63... Ke6 {[%clk 0:00:16.7]} 64. Rc7
{[%clk 0:00:06.5]} 64... Rb4+ {[%clk 0:00:16.4]} 65. Kd3 {[%clk 0:00:06.6]}
65... Kd6 {[%clk 0:00:17.1]} 66. Rf7 {[%clk 0:00:05.8]} 66... Ke6 {[%clk
0:00:17.1]} 67. Rh7 {[%clk 0:00:06.5]} 67... Kd6 {[%clk 0:00:16.2]} 68. Kc3
{[%clk 0:00:07]} 68... Rb1 {[%clk 0:00:16.6]} 69. Kc4 {[%clk 0:00:07.5]} 69...
Rb2 {[%clk 0:00:17.2]} 70. Kd4 {[%clk 0:00:07.1]} 70... Rb4+ {[%clk 0:00:17.3]}
71. Ke3 {[%clk 0:00:07.8]} 71... Rb1 {[%clk 0:00:17.5]} 72. Kf4 {[%clk
0:00:08.1]} 72... Ke6 {[%clk 0:00:17.3]} 73. Rc7 {[%clk 0:00:08.5]} 73... Rb4+
{[%clk 0:00:17.3]} 74. Kg3 {[%clk 0:00:08.4]} 74... Kd6 {[%clk 0:00:17.9]} 75.
Rh7 {[%clk 0:00:08.1]} 75... Ke6 {[%clk 0:00:17]} 76. f3 {[%clk 0:00:06.3]}
76... Rb2 {[%clk 0:00:12.2]} 77. Kf4 {[%clk 0:00:06.2]} 77... Rb4+ {[%clk
0:00:12.7]} 78. Ke3 {[%clk 0:00:06.5]} 78... Rb1 {[%clk 0:00:11]} 79. Kd4 {[%clk
0:00:06.9]} 79... Kd6 {[%clk 0:00:10.9]} 80. Ke4 {[%clk 0:00:07.5]} 80... Ke6
{[%clk 0:00:10.8]} 81. Kf4 {[%clk 0:00:07.4]} 81... Rb4+ {[%clk 0:00:10.6]} 82.
Ke3 {[%clk 0:00:08]} 82... Rb1 {[%clk 0:00:09.5]} 83. Kd3 {[%clk 0:00:08.5]}
83... Kd6 {[%clk 0:00:09.9]} 84. Kc2 {[%clk 0:00:08.6]} 84... Rb6 {[%clk
0:00:08.8]} 85. Kc3 {[%clk 0:00:08.7]} 85... Rb1 {[%clk 0:00:08.7]} 86. Kc4
{[%clk 0:00:09.2]} 86... Rb2 {[%clk 0:00:08.9]} 87. Rh6 {[%clk 0:00:03.4]} 87...
Ke6 {[%clk 0:00:08.8]} 88. Rh7 {[%clk 0:00:03.4]} 88... Kd6 {[%clk 0:00:09]} 89.
Kd4 {[%clk 0:00:02.9]} 89... Rb4+ {[%clk 0:00:07.7]} 90. Kc3 {[%clk 0:00:03.2]}
90... Rb1 {[%clk 0:00:08.3]} 91. Rf7 {[%clk 0:00:03.5]} 91... Ke6 {[%clk
0:00:08.3]} 92. Rc7 {[%clk 0:00:04]} 92... Kd6 {[%clk 0:00:08.7]} 93. Rh7 {[%clk
0:00:04]} 93... Ke6 {[%clk 0:00:08.3]} 94. Kd4 {[%clk 0:00:03]} 94... Kd6 {[%clk
0:00:08.4]} 95. f4 {[%clk 0:00:03.2]} 95... Rb4+ {[%clk 0:00:08.2]} 96. Ke3
{[%clk 0:00:03.9]} 96... f5 {[%clk 0:00:04.9]} 97. Kd3 {[%clk 0:00:03.5]} 97...
Kd5 {[%clk 0:00:02.7]} 98. Rxh5 {[%clk 0:00:03.4]} 98... Rb3+ {[%clk 0:00:03.4]}
99. Kc2 {[%clk 0:00:03.4]} 99... Rxb7 {[%clk 0:00:04.1]} 100. Rxf5+ {[%clk
0:00:03.9]} 100... Ke4 {[%clk 0:00:04.8]} 101. Rf6 {[%clk 0:00:04]} 101... Rh7
{[%clk 0:00:05.3]} 102. Kc3 {[%clk 0:00:04.2]} 102... Rxh4 {[%clk 0:00:05.7]}
103. Kc4 {[%clk 0:00:04.7]} 103... Rh8 {[%clk 0:00:06]} 104. Kc5 {[%clk
0:00:04.8]} 104... Rh5+ {[%clk 0:00:05.4]} 105. Kd6 {[%clk 0:00:04.8]} 105...
Rf5 {[%clk 0:00:05.7]} 106. Ke6 {[%clk 0:00:04.2]} 106... Rxf4 {[%clk
0:00:04.8]} 107. Rxf4+ {[%clk 0:00:03.8]} 107... Kxf4 {[%clk 0:00:05.7]} 1/2-1/2

[Event "Early-Titled-Tuesday-Blitz-February-20-2024"]
[Site "Chess.com"]
[Date "2024.02.20"]
[Round "8"]
[White "simonachess"]
[Black "Journey_to_GrandMaster_YT"]
[Result "0-1"]
[WhiteElo "2295"]
[BlackElo "2507"]
[TimeControl "180+1"]
[EndTime "9:24:26 PST"]
[Termination "Journey_to_GrandMaster_YT won by resignation"]

1. d4 {[%clk 0:03:00.9]} 1... d6 {[%clk 0:02:58.9]} 2. Nf3 {[%clk 0:02:58.7]}
2... Nf6 {[%clk 0:02:59.1]} 3. g3 {[%clk 0:02:55.7]} 3... Nbd7 {[%clk
0:02:59.1]} 4. Bg2 {[%clk 0:02:56.1]} 4... e5 {[%clk 0:02:59.4]} 5. O-O {[%clk
0:02:51.7]} 5... e4 {[%clk 0:02:59.5]} 6. Ng5 {[%clk 0:02:51.4]} 6... d5 {[%clk
0:02:59.8]} 7. c4 {[%clk 0:02:51]} 7... h6 {[%clk 0:02:58.5]} 8. Nh3 {[%clk
0:02:51.2]} 8... c6 {[%clk 0:02:58.5]} 9. Nc3 {[%clk 0:02:50.8]} 9... Nb6 {[%clk
0:02:51.1]} 10. Nxd5 {[%clk 0:02:47.7]} 10... cxd5 {[%clk 0:02:45.9]} 11. Nf4
{[%clk 0:02:45.1]} 11... Nxc4 {[%clk 0:02:40.2]} 0-1

[Event "Early-Titled-Tuesday-Blitz-February-20-2024"]
[Site "Chess.com"]
[Date "2024.02.20"]
[Round "8"]
[White "mertfelin"]
[Black "NovozhilovSemen"]
[Result "0-1"]
[WhiteElo "2343"]
[BlackElo "2643"]
[TimeControl "180+1"]
[EndTime "9:25:25 PST"]
[Termination "NovozhilovSemen won by resignation"]

1. e4 {[%clk 0:03:00.4]} 1... c5 {[%clk 0:02:59.4]} 2. Nf3 {[%clk 0:03:00.9]}
2... Nc6 {[%clk 0:02:59.4]} 3. Bb5 {[%clk 0:03:01.4]} 3... g6 {[%clk 0:02:59.3]}
4. O-O {[%clk 0:03:01]} 4... Bg7 {[%clk 0:02:59.4]} 5. Nc3 {[%clk 0:03:01.8]}
5... e5 {[%clk 0:02:56.3]} 6. a3 {[%clk 0:03:02.1]} 6... Nge7 {[%clk 0:02:55.7]}
7. b4 {[%clk 0:03:02.7]} 7... d6 {[%clk 0:02:54.1]} 8. bxc5 {[%clk 0:03:03.3]}
8... dxc5 {[%clk 0:02:54.4]} 9. d3 {[%clk 0:03:04]} 9... O-O {[%clk 0:02:54.3]}
10. h3 {[%clk 0:03:04.6]} 10... Nd4 {[%clk 0:02:53.7]} 11. Bc4 {[%clk
0:03:04.8]} 11... Be6 {[%clk 0:02:53]} 12. Ba2 {[%clk 0:02:55.6]} 12... h6
{[%clk 0:02:51.5]} 13. Be3 {[%clk 0:02:55]} 13... Kh7 {[%clk 0:02:50.4]} 14.
Bxe6 {[%clk 0:02:51.8]} 14... fxe6 {[%clk 0:02:49.4]} 15. Rb1 {[%clk 0:02:51]}
15... Nxf3+ {[%clk 0:02:47]} 16. gxf3 {[%clk 0:02:50.5]} 16... b6 {[%clk
0:02:47.9]} 17. Kh2 {[%clk 0:02:48.8]} 17... g5 {[%clk 0:02:47.7]} 18. Ne2
{[%clk 0:02:47.1]} 18... Ng6 {[%clk 0:02:46.7]} 19. Ng1 {[%clk 0:02:34.8]} 19...
Nh4 {[%clk 0:02:46.5]} 20. Qe2 {[%clk 0:02:32.2]} 20... Qc7 {[%clk 0:02:45.5]}
21. Bd2 {[%clk 0:02:31.3]} 21... Rf7 {[%clk 0:02:44.6]} 22. a4 {[%clk
0:02:30.7]} 22... Raf8 {[%clk 0:02:41.9]} 23. a5 {[%clk 0:02:28.9]} 23... Nxf3+
{[%clk 0:02:37.4]} 24. Nxf3 {[%clk 0:02:29.3]} 24... Rxf3 {[%clk 0:02:38.3]} 25.
axb6 {[%clk 0:02:29.8]} 25... axb6 {[%clk 0:02:38.2]} 26. Ra1 {[%clk 0:02:27.9]}
26... Qf7 {[%clk 0:02:37.7]} 27. Be3 {[%clk 0:02:27.6]} 27... Qh5 {[%clk
0:02:37.7]} 0-1

[Event "Early-Titled-Tuesday-Blitz-February-20-2024"]
[Site "Chess.com"]
[Date "2024.02.20"]
[Round "8"]
[White "Skatchkov_V"]
[Black "ragnaroek66"]
[Result "1-0"]
[WhiteElo "2619"]
[BlackElo "2428"]
[TimeControl "180+1"]
[EndTime "9:25:33 PST"]
[Termination "Skatchkov_V won by resignation"]

1. d4 {[%clk 0:03:00.9]} 1... Nf6 {[%clk 0:02:58]} 2. c4 {[%clk 0:03:00.9]} 2...
e6 {[%clk 0:02:57.8]} 3. Nf3 {[%clk 0:03:00.6]} 3... d5 {[%clk 0:02:57.6]} 4. g3
{[%clk 0:03:01]} 4... Be7 {[%clk 0:02:57.1]} 5. Bg2 {[%clk 0:03:01.6]} 5... O-O
{[%clk 0:02:57.7]} 6. Nc3 {[%clk 0:03:02.2]} 6... dxc4 {[%clk 0:02:52.3]} 7. Ne5
{[%clk 0:03:02.7]} 7... c5 {[%clk 0:02:29.4]} 8. dxc5 {[%clk 0:03:02.2]} 8...
Qc7 {[%clk 0:02:27.8]} 9. Nxc4 {[%clk 0:02:46.3]} 9... Qxc5 {[%clk 0:02:22.9]}
10. b3 {[%clk 0:02:45.9]} 10... Rd8 {[%clk 0:02:13.5]} 11. Qc2 {[%clk
0:02:45.9]} 11... Nc6 {[%clk 0:02:13]} 12. O-O {[%clk 0:02:39.3]} 12... Ne5
{[%clk 0:02:02.5]} 13. Ba3 {[%clk 0:02:35.5]} 13... Qc7 {[%clk 0:01:53]} 14.
Bxe7 {[%clk 0:02:35]} 1-0

[Event "Early-Titled-Tuesday-Blitz-February-20-2024"]
[Site "Chess.com"]
[Date "2024.02.20"]
[Round "8"]
[White "snowlord"]
[Black "Brave_spirit12"]
[Result "1-0"]
[WhiteElo "2891"]
[BlackElo "2730"]
[TimeControl "180+1"]
[EndTime "9:26:07 PST"]
[Termination "snowlord won by resignation"]

1. Nf3 {[%clk 0:03:00.9]} 1... c5 {[%clk 0:02:55.3]} 2. g3 {[%clk 0:03:00.5]}
2... Nc6 {[%clk 0:02:55.7]} 3. d4 {[%clk 0:02:58.9]} 3... cxd4 {[%clk
0:02:55.3]} 4. Nxd4 {[%clk 0:02:59.8]} 4... g6 {[%clk 0:02:56]} 5. Bg2 {[%clk
0:02:58.2]} 5... Bg7 {[%clk 0:02:56.1]} 6. Nxc6 {[%clk 0:02:58.9]} 6... dxc6
{[%clk 0:02:55]} 7. Qxd8+ {[%clk 0:02:58.6]} 7... Kxd8 {[%clk 0:02:55.9]} 8. a4
{[%clk 0:02:55.1]} 8... Kc7 {[%clk 0:02:54.6]} 9. a5 {[%clk 0:02:52.3]} 9... Bf5
{[%clk 0:02:51.6]} 10. a6 {[%clk 0:02:34.8]} 10... b6 {[%clk 0:02:49.4]} 11. c3
{[%clk 0:02:16.7]} 11... Rd8 {[%clk 0:02:41.8]} 12. Na3 {[%clk 0:02:11.9]} 12...
Be6 {[%clk 0:02:25.1]} 13. Bf4+ {[%clk 0:02:11.1]} 13... Kc8 {[%clk 0:02:22.8]}
14. Bxc6 {[%clk 0:02:10.8]} 14... Bd5 {[%clk 0:02:22.7]} 15. Nb5 {[%clk
0:01:59.2]} 1-0

[Event "Early-Titled-Tuesday-Blitz-February-20-2024"]
[Site "Chess.com"]
[Date "2024.02.20"]
[Round "8"]
[White "SHIVACalypso"]
[Black "Heinza9"]
[Result "0-1"]
[WhiteElo "2493"]
[BlackElo "2331"]
[TimeControl "180+1"]
[EndTime "9:26:12 PST"]
[Termination "Heinza9 won by resignation"]

1. d4 {[%clk 0:03:00.9]} 1... f5 {[%clk 0:02:59.2]} 2. g3 {[%clk 0:02:57.9]}
2... Nf6 {[%clk 0:02:59.1]} 3. Bg2 {[%clk 0:02:58.4]} 3... g6 {[%clk 0:02:59.6]}
4. Nf3 {[%clk 0:02:59]} 4... Bg7 {[%clk 0:03:00]} 5. O-O {[%clk 0:02:59.7]} 5...
O-O {[%clk 0:03:00.3]} 6. c4 {[%clk 0:03:00.4]} 6... d6 {[%clk 0:03:00.8]} 7.
Nc3 {[%clk 0:03:01]} 7... Qe8 {[%clk 0:03:01.2]} 8. Re1 {[%clk 0:02:59.7]} 8...
Qf7 {[%clk 0:03:00.1]} 9. d5 {[%clk 0:02:55.7]} 9... Ne4 {[%clk 0:02:59.3]} 10.
Qc2 {[%clk 0:02:45.1]} 10... Nxc3 {[%clk 0:02:58.2]} 11. bxc3 {[%clk 0:02:46]}
11... h6 {[%clk 0:02:57.1]} 12. Nd4 {[%clk 0:02:44.8]} 12... Na6 {[%clk
0:02:55.2]} 13. a4 {[%clk 0:02:40.7]} 13... Nc5 {[%clk 0:02:54.8]} 14. Ba3
{[%clk 0:02:40.2]} 14... b6 {[%clk 0:02:47.6]} 15. Bxc5 {[%clk 0:02:38]} 15...
bxc5 {[%clk 0:02:47.6]} 16. Nf3 {[%clk 0:02:34.9]} 16... Qf6 {[%clk 0:02:45]}
17. Rec1 {[%clk 0:02:33.9]} 17... Rb8 {[%clk 0:02:45]} 18. Ne1 {[%clk 0:02:32]}
18... Ba6 {[%clk 0:02:44.1]} 19. Qd3 {[%clk 0:02:29.9]} 19... g5 {[%clk
0:02:34.3]} 20. e4 {[%clk 0:02:26.6]} 20... fxe4 {[%clk 0:02:32.6]} 21. Bxe4
{[%clk 0:02:27.5]} 21... Qxf2+ {[%clk 0:02:32.4]} 22. Kh1 {[%clk 0:02:27.4]}
22... Qf1+ {[%clk 0:02:22.1]} 23. Qxf1 {[%clk 0:02:26.5]} 23... Rxf1+ {[%clk
0:02:22.2]} 24. Kg2 {[%clk 0:02:27.4]} 24... Rbf8 {[%clk 0:02:16.1]} 25. Nf3
{[%clk 0:02:15]} 25... Rxc1 {[%clk 0:02:14.8]} 26. Rxc1 {[%clk 0:02:15.9]} 26...
Bxc4 {[%clk 0:02:14.3]} 27. Nd2 {[%clk 0:02:16.1]} 27... Ba6 {[%clk 0:02:07.3]}
28. c4 {[%clk 0:02:16.4]} 28... Rb8 {[%clk 0:02:04.3]} 29. Re1 {[%clk
0:02:16.6]} 29... Rb2 {[%clk 0:02:02.8]} 30. Re2 {[%clk 0:02:16.6]} 30... Bxc4
{[%clk 0:02:02.2]} 0-1